[Event "FRA-ch 91st"]
[Site "Agen"]
[Date "2016.08.17"]
[Round "5"]
[White "Demuth, Adrien"]
[Black "Jolly, Jean Francois"]
[Result "0-1"]
[ECO "D77"]
[WhiteElo "2545"]
[BlackElo "2361"]
[Annotator "Besenthal,K/Primel,D"]
[PlyCount "150"]
[EventDate "2016.08.13"]
[EventType "tourn"]
[EventRounds "9"]
[EventCountry "FRA"]
[EventCategory "14"]
[SourceTitle "CBM 174"]
[Source "ChessBase"]
[SourceDate "2016.09.13"]
[SourceVersion "1"]
[SourceVersionDate "2016.09.13"]
[SourceQuality "1"]
[TimeControl "40/5400+30:1800+30"]

1. Nf3 {[%emt 0:03:41]} d5 {[%emt 0:01:19]} 2. g3 {[%emt 0:00:20]} Nf6 {
[%emt 0:00:27]} 3. Bg2 {[%emt 0:00:10]} g6 {[%emt 0:00:28]} 4. d4 {[%emt 0:02:
00]} Bg7 {[%emt 0:00:23]} 5. c4 {[%emt 0:00:29]} dxc4 {[%emt 0:04:34]} 6. Na3 {
[%emt 0:00:46]} O-O {[%emt 0:10:01]} (6... c3 {L'alternative} 7. bxc3 O-O 8.
O-O c5) 7. O-O {[%emt 0:00:53]} Na6 {[%emt 0:00:40]} 8. Nxc4 {[%emt 0:00:25]}
c5 {[%emt 0:00:18]} 9. b3 {[%emt 0:01:26]} Be6 {[%emt 0:09:02]} (9... Bf5 10.
Bb2 Be4 11. Ncd2 Bc6 12. Qb1 cxd4 13. Bxd4 Nc7 14. Qb2 Ne6 15. Bc3 Qb6 16. Nc4
Qa6 17. Rfd1 Rad8 18. a4 Rxd1+ 19. Rxd1 Rd8 20. Rxd8+ Nxd8 {1/2-1/2 (20) Erdos,
V (2621)-Edouard,R (2659) Germany 2014}) 10. Bb2 {[%emt 0:04:17]} Bd5 {[%emt 0:
09:29]} 11. Rc1 {[%emt 0:06:27]} Rc8 {[%emt 0:02:37]} 12. Qd2 {[%emt 0:14:55]}
Ne4 $146 {[%emt 0:25:25]} (12... b5 13. Nce5 c4 14. bxc4 bxc4 15. Ne1 Bxg2 16.
Nxg2 Ne4 17. Qc2 c3 18. Qxe4 cxb2 19. Rb1 Qb6 20. e3 Qb5 21. Nd3 Rc2 22. Rfd1
e5 23. Nge1 Rc7 24. dxe5 Rc4 25. Rxb2 Qa4 26. Qf3 Rd8 27. Rdb1 Nc7 28. Rb8 Qe8
29. Rxd8 Qxd8 30. Qb7 Ne6 31. Qxa7 Rc8 32. Qa4 Qd5 33. e4 Qd8 34. Kg2 h5 35. h4
Qc7 36. Rc1 Qb7 37. Rxc8+ Qxc8 38. Nf3 Qb7 39. Qc4 Qa7 40. a4 {1-0 (40)
Motwani,P (2536)-Goloshchapov,A (2574) Belgium 2004}) 13. Qe3 {[%emt 0:07:22]}
Nd6 {[%emt 0:02:45]} 14. Nxd6 {[%emt 0:14:22]} exd6 {[%emt 0:00:33]} 15. Qd2 {
[%emt 0:00:32][%cal Gd2b2]} Be4 $132 {[%emt 0:07:57]} 16. Rfd1 {[%emt 0:03:40]}
Qe7 {[%emt 0:01:01]} 17. Ne1 {[%emt 0:09:33]} Rfe8 $1 {[%emt 0:03:01][%csl Re2]
Provoque un léger affaiblissement des cases Blanches} 18. e3 {[%emt 0:04:37]}
b6 {[%emt 0:04:10]} 19. dxc5 {[%emt 0:05:01]} dxc5 {[%emt 0:00:39]} 20. Bxg7 {
[%emt 0:02:25]} Kxg7 {[%emt 0:00:08]} 21. Qc3+ {[%emt 0:04:46]} Qf6 {[%emt 0:
02:39]} 22. Bxe4 {[%emt 0:08:44]} Qxc3 {[%emt 0:00:06]} 23. Rxc3 {[%emt 0:00:
03]} Rxe4 {[%emt 0:00:07]} 24. Nc2 {[%emt 0:00:49]} Rc7 {[%emt 0:02:12]} 25. f3
{[%emt 0:01:01]} Ree7 {[%emt 0:00:12]} 26. Kf2 {[%emt 0:00:30]} Red7 {[%emt 0:
01:56]} 27. Rxd7 {[%emt 0:01:16]} Rxd7 {[%emt 0:00:02]} 28. Ke2 {[%emt 0:00:06]
} Kf6 {[%emt 0:00:28]} 29. Rc4 {[%emt 0:00:37]} Nc7 {[%emt 0:03:06] le N
revient enfin au centre mais les Blancs n'ont rien obtenu de concret de sa
position hors-jeu} 30. Ne1 {[%emt 0:01:02]} Ne6 {[%emt 0:00:51]} 31. Nd3 {
[%emt 0:00:17]} Rc7 {[%emt 0:01:02][%cal Gb6b5]} 32. Nf4 {[%emt 0:01:12]} Nxf4+
{[%emt 0:00:08]} 33. Rxf4+ {[%emt 0:00:05]} Ke6 {[%emt 0:00:19]} 34. g4 {
[%emt 0:00:20]} b5 {[%emt 0:01:40]} 35. Kd3 {[%emt 0:01:33]} Rd7+ {[%emt 0:00:
28]} 36. Kc2 {[%emt 0:00:06]} Rd5 {[%emt 0:01:04]} 37. h4 {[%emt 0:01:12]} h6 {
[%emt 0:00:22]} 38. Kc3 {[%emt 0:00:58]} g5 {[%emt 0:00:41]} 39. hxg5 {[%emt 0:
00:02]} hxg5 {[%emt 0:00:09]} 40. Re4+ {[%emt 0:01:14]} Re5 {[%emt 0:00:42]
Schwarz trifft eine extrem verpflichtende Entscheidung, denn auch wenn das
Bauernendspiel remis aussieht: Wer kann das schon in allen seinen Varianten
richtig einschätzen?} (40... Kd7 41. f4 gxf4 42. exf4 {gefiel Jolly
vielleicht nicht, weil es hier so aussah, als würde Weiß schneller einen
Freibauern bilden können. Doch nach} b4+ 43. Kc2 (43. Kc4 Kc6 44. f5 Rd2)
43... f5 44. gxf5 Rxf5 45. Kd3 Kd6 46. Ke3 Rh5 47. Kf3 Rh3+ 48. Kg2 Rc3 49. f5
Rc2+ 50. Kg3 Rxa2 51. f6 Ra1 52. Rf4 Rg1+ {erreicht Weiß nichts.}) 41. Rxe5+ {
[%emt 0:17:24]} Kxe5 {[%emt 0:00:22]} 42. a4 {[%emt 0:01:14]} a6 {[%emt 0:03:
58]} 43. axb5 {[%emt 0:04:43]} axb5 {[%emt 0:00:08]} 44. Kd3 {[%emt 0:00:01]}
Kd5 {[%emt 0:03:49]} 45. Kc3 {[%emt 0:01:22]} Kc6 {[%emt 0:02:37]} 46. Kd3 {
[%emt 0:01:44]} Kb6 {[%emt 0:01:28]} 47. Kc2 {[%emt 0:03:30]} Ka5 {[%emt 0:10:
09]} 48. Kc3 {[%emt 0:00:01]} f6 {[%emt 0:07:14]} 49. b4+ $1 {[%emt 0:00:16]}
Kb6 {[%emt 0:01:20]} 50. f4 {[%emt 0:00:49]} ({Oder} 50. bxc5+ Kxc5 51. Kb3 b4
52. f4 Kd5 53. Kxb4 Ke4 54. f5 Kxe3 55. Kc5 Kf4 56. Kd5 Kxg4 57. Ke6 Kh4 58.
Kxf6 g4 59. Ke7 g3 60. f6 $11) 50... Kc6 {[%emt 0:00:19]} 51. f5 {[%emt 0:00:
41]} c4 {[%emt 0:04:24]} 52. Kd4 {[%emt 0:01:32]} Kd7 {[%emt 0:00:32]} 53. Kc3
{[%emt 0:02:03]} Kc6 {[%emt 0:00:20]} 54. Kd4 {[%emt 0:00:03]} Kd6 {[%emt 0:00:
29]} 55. e4 {[%emt 0:00:12]} Ke7 {[%emt 0:00:24]} 56. Kc3 {[%emt 0:00:25]} Kd7
{[%emt 0:00:04]} 57. Kd4 {[%emt 0:00:02]} Kd6 {[%emt 0:00:10] Diagramm [#]} 58.
e5+ {[%emt 0:00:04] '!' Das sieht plausibel aus: Weiß braucht unbedingt einen
Freibauern, koste es, was es wolle.} fxe5+ {[%emt 0:00:03]} 59. Ke4 {[%emt 0:
00:41]} Kd7 {[%emt 0:00:16]} 60. Ke3 {[%emt 0:00:09]} Ke7 {[%emt 0:00:05]} 61.
Ke4 {[%emt 0:00:22]} Kd6 {[%emt 0:00:06]} 62. Ke3 {[%emt 0:00:03]} Kd5 {
[%emt 0:00:05]} 63. Kd2 {[%emt 0:00:38]} e4 {[%emt 0:00:16]} 64. Ke3 $2 {
[%emt 0:00:13] Der entscheidende Fehler? Jetzt entsteht eine Situation, in der
Schwarz den Bf5 schließlich einfach laufen lassen kann, was Weiß natürlich
unter allen Umständen hätte verhindern müssen.} (64. Kd1 $1 c3 (64... e3 65.
Ke2 c3 $4 66. Kd3 e2 67. Kxe2 Kc4 68. Kd1) 65. Kc2 Ke5 (65... e3 $4 66. Kxc3
Ke4 67. f6) 66. Kxc3 Kd5 $11) (64. Kc3) 64... c3 $1 {[%emt 0:00:29]} 65. Ke2 {
[%emt 0:00:01]} Kd6 $1 {[%emt 0:01:23]} 66. Ke3 {[%emt 0:00:05]} Ke5 {[%emt 0:
00:16]} 67. Ke2 {[%emt 0:00:03]} Kd5 {[%emt 0:00:07]} 68. Ke3 {[%emt 0:00:21]}
Kc4 {[%emt 0:04:02]} 69. f6 {[%emt 0:02:32]} c2 {[%emt 0:00:06]} 70. Kd2 {
[%emt 0:00:36]} Kb3 {[%emt 0:00:05]} 71. f7 {[%emt 0:00:54]} Kb2 {[%emt 0:00:
04]} 72. f8=Q {[%emt 0:00:14]} c1=Q+ {[%emt 0:00:06]} 73. Ke2 {[%emt 0:00:03]}
Qc2+ {[%emt 0:00:39]} 74. Ke1 {[%emt 0:00:14]} Qc3+ {[%emt 0:01:22]} 75. Ke2 {
[%emt 0:00:18]} Qd3+ {[%emt 0:00:08]} 0-1

[Event "Tata Steel-A 80th"]
[Site "Wijk aan Zee"]
[Date "2018.01.13"]
[Round "1"]
[White "Kramnik, Vladimir"]
[Black "Wei, Yi"]
[Result "1-0"]
[ECO "D77"]
[WhiteElo "2787"]
[BlackElo "2743"]
[Annotator "Fernandez,D"]
[PlyCount "109"]
[EventDate "2018.01.13"]
[EventType "tourn"]
[EventRounds "13"]
[EventCountry "NED"]
[EventCategory "20"]
[SourceTitle "CBM 183"]
[Source "ChessBase"]
[SourceDate "2018.03.14"]
[SourceVersion "1"]
[SourceVersionDate "2018.03.14"]
[SourceQuality "1"]
[TimeControl "40/5400+30:1800+30"]

1. Nf3 {[%emt 0:00:00]} d5 {[%emt 0:00:00]} 2. g3 {[%emt 0:00:00]} g6 {[%emt 0:
00:00]} 3. Bg2 {[%emt 0:00:00]} Bg7 {[%emt 0:00:00]} 4. d4 {[%emt 0:00:00]} Nf6
{[%emt 0:00:00]} 5. O-O {[%emt 0:00:00]} O-O {[%emt 0:00:00]} 6. c4 {[%emt 0:
00:00]} dxc4 {[%emt 0:00:00]} 7. Na3 {[%emt 0:00:00] A good move to play for a
long technical battle!} c5 {[%emt 0:00:00]} (7... c3) 8. dxc5 {[%emt 0:00:00]}
c3 {[%emt 0:00:00] The approved method of gaining equality, but I think Black
might have to take the pawn on the next move to prove it.} (8... Qxd1 {was
tried recently, but it is more unpleasant for Black.} 9. Rxd1 Nfd7 10. Nxc4
Nxc5 11. Be3 $16 {Meier,G-Edouard,R Germany 2017}) 9. Nb5 $1 {[%emt 0:00:00]}
Na6 {[%emt 0:01:46]} (9... cxb2 10. Bxb2 Bd7 11. Qb3 Bc6 12. Rfd1 {was a
previous Kramnik game: Kramnik,V-Topalov,V London 2016; here I think ...Qa5
and then ...Nbd7 offers Black reasonable play.} Qa5 $132 (12... Nbd7)) 10. Nxc3
{[%emt 0:00:00]} Nxc5 {[%emt 0:01:00][%cal Gg2a8,Gg7a1]} 11. Be3 {[%emt 0:00:
00]} Nfe4 {[%emt 0:10:18]} 12. Nxe4 {[%emt 0:00:00]} Nxe4 {[%emt 0:00:07]} 13.
Bd4 $1 {[%emt 0:00:00]} Bxd4 {[%emt 0:00:16]} 14. Qxd4 {[%emt 0:00:07]} Qxd4 {
[%emt 0:01:35]} 15. Nxd4 {[%emt 0:04:21]} Nd6 {[%emt 0:00:08][%csl Gd6]
Unbelievably, this had all been seen before, and from Wei Yi's next move, it
is clear that he had seen the precedent.} 16. Rac1 $146 {[%emt 0:03:03]} (16.
Rfc1 Rd8 17. Rc7 Kf8 18. Rac1 Ne8 19. R7c4 Nd6 20. Rc5 Bd7 $11 {Ding,L-Giri,A
Palma de Mallorca 2017, was equal and ultimately drawn.}) 16... Rd8 {[%emt 0:
10:01]} (16... e5 17. Nb3 Be6 {was now worthy of note, and while I might think
it's an equalising route, we will just have to wait for Kramnik to beat
another elite player to find out what he had in mind here!}) 17. f4 {[%emt 0:
03:19][%cal Gg1f2] This approach goes better with the rook on f1 than a1, as
White wants to bring it to d1 next.} Kf8 {[%emt 0:20:37]} 18. Kf2 {[%emt 0:05:
11]} Bg4 {[%emt 0:03:04]} 19. h3 {[%emt 0:08:32]} Bd7 {[%emt 0:00:50]} 20. e4 {
[%emt 0:19:50][%cal Ge4e5]} (20. Rc7 $5 {appeals to me, as I think the e4-e5
push gains in strength from there being no rooks on the board.}) 20... Rac8 {
[%emt 0:07:03]} (20... Nb5 $1 {was still objectively equal if a little
unpleasant over the board:} 21. Nxb5 (21. Rfd1 Nxd4 22. Rxd4 Be6 $15) 21...
Bxb5 22. Rfd1 Rxd1 23. Rxd1 Rc8 24. Rd2 f6 $11) 21. Rxc8 {[%emt 0:13:34]} (21.
e5 {may have been good, taking advantage of a moment when Black is not able to
reply with ...Nb5 and must worry about the b7-pawn.} Nf5 22. Ne2 Bb5 $1 {
This accurate move may be needed to hold the balance. There could follow} 23.
Rxc8 Rxc8 24. Rc1 Rxc1 25. Nxc1 b6 26. Be4 {and Black should just be equal
with one or two more good moves.}) 21... Rxc8 {[%emt 0:01:47]} 22. Rd1 {
[%emt 0:00:31] The point seems to be that after ...Nb5 White now intends Ne2!,
a4, and Nc3.} Ke8 {[%emt 0:22:30]} (22... Nb5 23. Ne2 {[%cal Ga2a4,Ge2c3]}) 23.
e5 {[%emt 0:07:21]} Nf5 {[%emt 0:00:42][%cal Gc8c2]} 24. Nb3 {[%emt 0:03:29]} (
24. Nxf5 Rc2+ {[%csl Gg2]}) 24... Bc6 {[%emt 0:07:27]} (24... Rc2+ 25. Rd2
Rxd2+ 26. Nxd2 b6 {would have led to a similar ending to the last note.'} 27.
g4 Nd4 28. a3 $14) 25. Rc1 {[%emt 0:02:57] Now I think White has a little
something!} Kd7 {[%emt 0:00:10]} 26. Nc5+ {[%emt 0:02:27]} Ke8 {[%emt 0:00:19]}
27. Nd3 {[%emt 0:07:15]} (27. Na6 $5 {is rather flashy for a move that is only
trying to inflict pawn weaknesses on the opponent, but Black seems to be fine
after the accurate} Nd4 $1 $11) 27... Kd7 {[%emt 0:01:43]} 28. g4 {[%emt 0:07:
53] Giving Black a major headache - his best move now requires a wrinkle to
make it playable.} Nd4 $6 {[%emt 0:08:05]} (28... Bxg2 29. Rxc8 (29. e6+ {
[%csl Gc8,Gd7]} fxe6 30. Ne5+ Kd8 31. Nf7+ {DF} Kd7 32. Rxc8 Kxc8 33. Kxg2 Nd6
34. Ng5 {looks slightly unpleasant for Black, though the machine notes that he
draws with the only move} e5 $1 35. fxe5 h6 $1 $11) 29... Kxc8 30. Kxg2 $14)
29. Rc4 {[%emt 0:02:00]} Ne6 {[%emt 0:00:06]} 30. f5 {[%emt 0:01:15]} gxf5 {
[%emt 0:02:45]} 31. gxf5 {[%emt 0:00:38]} Ng7 {[%emt 0:02:11]} (31... Nd8 $14 {
limited the damage by not allowing another isolated pawn, though the
co-ordination and space deficits are still there.}) 32. Bxc6+ {[%emt 0:02:55]}
bxc6 {[%emt 0:00:05]} (32... Rxc6 33. e6+ $1 Ke8 {[%cal Ge6f7]} (33... fxe6 34.
Ne5+) 34. exf7+ Kf8 (34... Kxf7 35. Ne5+) 35. Rxc6 bxc6 36. b4 Nxf5 37. Ne5 $16
Nd4 {DF} 38. a4 $18) 33. Nc5+ {[%emt 0:02:16]} Kc7 {[%emt 0:00:06]} 34. Rh4 {
[%emt 0:03:31]} (34. Rb4 Nxf5 35. Rb7+ Kd8 36. Rxa7 $16) 34... h5 {[%emt 0:02:
00]} (34... Nxf5 35. Rxh7 Rf8 36. h4 $16) (34... Rh8 {DF} 35. Rb4 Nxf5 36. Rb7+
Kc8 37. Rxa7 $18) 35. f6 {[%emt 0:00:44] Winning a pawn by force} exf6 {
[%emt 0:00:04]} 36. exf6 {[%emt 0:00:18]} Ne8 {[%emt 0:00:16]} 37. Rxh5 {
[%emt 0:01:02]} Nxf6 {[%emt 0:00:48]} 38. Rf5 {[%emt 0:00:15]} Nd5 {[%emt 0:00:
49]} 39. Rxf7+ {[%emt 0:01:27]} Kd6 {[%emt 0:00:04]} 40. Ne4+ {[%emt 0:00:00]}
Ke5 {[%emt 0:00:00]} 41. Nd2 {[%emt 0:00:00]} a5 {[%emt 0:00:00] Black has
played these last ten moves well, keeping active even at the cost of a pawn,
but unfortunately White's position is probably winning with best play.} 42.
Nc4+ {[%emt 0:00:00]} Ke6 {[%emt 0:00:00]} (42... Kd4 43. Nxa5) 43. Rh7 {
[%emt 0:03:25]} Rb8 {[%emt 0:10:07]} 44. Ke2 {[%emt 0:04:37]} Kf5 {[%emt 0:13:
06]} (44... Rb4 45. Rh6+) (44... a4 $142) 45. Rh6 {[%emt 0:06:04]} Nf6 {
[%emt 0:05:24]} 46. h4 {[%emt 0:01:50]} a4 {[%emt 0:02:27]} 47. Kd3 {[%emt 0:
01:36]} c5 {[%emt 0:01:30]} (47... Rd8+ $16 {would have continued to put up
more active resistance}) 48. Ne3+ {[%emt 0:03:34]} Ke5 {[%emt 0:00:07]} 49. h5
$6 {[%emt 0:02:24]} (49. Rg6 $142 $1 $18 {forces Black's king back for
tactical reasons. The position can't be held anymore.}) 49... Rd8+ {[%emt 0:01:
08] In the game again! I suspect there was an element of time pressure here.}
50. Kc4 $6 {[%emt 0:02:05]} Ne4 $4 {[%emt 0:00:28]} (50... Rd2 $1 $11 {is a
sudden draw; the subtlety here is that while Black can't take on b2
immediately, he does have} 51. Kxc5 Ne4+ 52. Kc6 Kd4 $1 53. Nf5+ Ke5 {The
knight has no good way to avoid the attention of the black king, and ...Rxb2
is always on the cards.}) 51. Kb5 {[%emt 0:02:08] Now White picks up the
a-pawn and there should be no further drama.} Kd4 {[%emt 0:01:19]} 52. Nc4 $18
{[%emt 0:02:26]} a3 {[%emt 0:00:22]} 53. Nxa3 {[%emt 0:00:53]} Nd6+ {[%emt 0:
01:47]} 54. Kc6 {[%emt 0:02:40]} Nf7 {[%emt 0:00:10]} 55. Nb5+ {[%emt 0:01:37]}
1-0

[Event "Sautron op 14th"]
[Site "Sautron"]
[Date "2014.10.25"]
[Round "5"]
[White "Maiorov, Nikita"]
[Black "Barbot, Pierre"]
[Result "1-0"]
[ECO "D77"]
[WhiteElo "2583"]
[BlackElo "2440"]
[Annotator "RR"]
[PlyCount "83"]
[EventDate "2014.10.26"]
[EventType "swiss"]
[EventRounds "9"]
[EventCountry "FRA"]
[SourceTitle "EXT 2015"]
[Source "ChessBase"]
[SourceDate "2014.11.20"]
[SourceVersion "1"]
[SourceVersionDate "2014.11.20"]
[SourceQuality "1"]
[TimeControl "40/5400+30:1800+30"]
[WhiteClock "0:47:45"]
[BlackClock "1:26:16"]

1. d4 {[%emt 0:02:16]} Nf6 {[%emt 0:00:00]} 2. Nf3 {[%emt 0:00:34]} g6 {
[%emt 0:00:00]} 3. g3 {[%emt 0:00:09]} Bg7 {[%emt 0:00:00]} 4. Bg2 {[%emt 0:00:
04]} d5 {[%emt 0:00:00]} 5. O-O {[%emt 0:00:07]} O-O {[%emt 0:00:00]} 6. c4 {
[%emt 0:00:03]} dxc4 {[%emt 0:00:02]} 7. Na3 {[%emt 0:00:03]} c5 {[%emt 0:00:
04]} (7... c3 {La grande ligne}) 8. dxc5 {[%emt 0:00:19]} (8. Nxc4 Na6 9. b3
Bf5 10. Bb2 Be4 11. Rc1 {Karpov,A (2735)-Polgar,J (2670) Hoogovens Wijk aan
Zee 1998 (10) 1-0}) 8... Nc6 {[%emt 0:05:37]} 9. Nxc4 {[%emt 0:02:59]} Be6 {
[%emt 0:00:13]} (9... Qxd1 10. Rxd1 Ne4 11. Be3 Be6 12. Rac1 Rfd8 13. Rd3 Nb4
14. Nfe5 Nxd3 15. exd3 Nxc5 16. Bxc5 Bxc4 17. Nxc4 Rac8 18. Bxe7 Rxd3 19. Bf1
Rd7 20. Re1 Re8 21. Bb4 Rxe1 22. Bxe1 Rd1 23. Bb4 b5 24. Ne3 Ra1 25. b3 a6 26.
Bc5 Rxa2 27. Nd5 Rc2 28. b4 a5 29. Bxb5 axb4 30. Bxb4 Bd4 31. Be1 Rc5 32. Bc6
Kg7 33. Bb7 Rb5 34. Bc6 Rc5 35. Bb7 Rb5 36. Bc6 {1/2-1/2 (36) Zysk,R (2437)
-Guilleux,F (2388) Paris 2011}) 10. Nce5 {[%emt 0:08:56]} Ne4 {[%emt 0:18:09]}
(10... Nxe5 11. Nxe5 Qc7 12. Nd3 $14 {[%cal Gd3c5]}) 11. Nxc6 {[%emt 0:05:06]}
bxc6 {[%emt 0:00:14]} 12. Qc2 {[%emt 0:00:33][%cal Gf1d1]} Bf5 $2 {[%emt 0:00:
48][%cal Ge4g3] Un coup naturel mais qui va être réfuté} (12... Bd5) 13. g4
$1 {[%emt 0:04:27] Gagne une pièce et le reste de la partie sera une lente
valorisation du matériel par le GMI} Ng3 {[%emt 0:00:39]} 14. gxf5 $18 {
[%emt 0:00:08]} Nxf1 {[%emt 0:00:02]} 15. Kxf1 {[%emt 0:00:25]} Rb8 {[%emt 0:
00:40]} 16. Rb1 {[%emt 0:00:29]} Qd5 {[%emt 0:00:03]} 17. b3 {[%emt 0:01:28]}
Rfd8 {[%emt 0:00:50]} 18. Bf4 {[%emt 0:06:57]} Rb5 {[%emt 0:00:41]} 19. Ne5 {
[%emt 0:08:31]} Rxc5 {[%emt 0:02:17]} 20. Bxd5 {[%emt 0:00:29]} Rxc2 {[%emt 0:
00:03]} 21. Nxc6 {[%emt 0:02:24]} Rd7 {[%emt 0:00:07]} 22. fxg6 {[%emt 0:04:22]
} hxg6 {[%emt 0:01:46]} 23. a4 {[%emt 0:01:29]} e6 {[%emt 0:05:25]} 24. Bc4 {
[%emt 0:00:58]} Kh7 {[%emt 0:02:51]} 25. Be3 {[%emt 0:02:03]} Bh6 {[%emt 0:00:
40]} 26. Nb4 {[%emt 0:10:15]} Rc3 {[%emt 0:01:25]} 27. Bxh6 {[%emt 0:00:19]}
Kxh6 {[%emt 0:00:07]} 28. Nd3 {[%emt 0:00:08]} Rc2 {[%emt 0:00:54]} 29. Ra1 {
[%emt 0:00:04]} Kg5 {[%emt 0:00:57]} 30. Ke1 {[%emt 0:00:13]} Kf6 {[%emt 0:00:
48]} 31. a5 {[%emt 0:01:33]} e5 {[%emt 0:01:27]} 32. f3 {[%emt 0:00:36]} Rd4 {
[%emt 0:00:26]} 33. Nb4 {[%emt 0:05:12]} Rb2 {[%emt 0:01:39]} 34. Nc6 {[%emt 0:
00:13]} Rh4 {[%emt 0:00:27]} 35. Kd1 {[%emt 0:05:53]} Rxh2 {[%emt 0:00:30]} 36.
Kc1 {[%emt 0:00:04]} Rbxe2 {[%emt 0:00:08]} 37. Bxe2 {[%emt 0:00:06]} Rxe2 {
[%emt 0:00:03]} 38. Ra4 {[%emt 0:04:22]} Re3 {[%emt 0:02:10]} 39. Nxa7 {
[%emt 0:04:32]} Rxb3 {[%emt 0:01:24]} 40. a6 {[%emt 0:00:00]} e4 {[%emt 0:00:
00]} 41. fxe4 {[%emt 0:01:28]} g5 {[%emt 0:00:38]} 42. Nc6 {[%emt 0:02:58]} 1-0